[Event "Titled Tuesday Blitz January 17 Early 2023"]
[White "Myshakov, Fyodor"]
[Black "Tasev, Dejan"]
[WhiteFideId "14111284"]
[BlackFideId "936618"]
[WhiteElo "2292"]
[BlackElo "2205"]
[Result "1-0"]
[Round "09"]
[TimeControl "180+2"]
[Date "2023.01.17"]
[WhiteClock "0:00:07"]
[BlackClock "0:00:41"]

1. c4 {[%clk 0:02:59]}  Nf6 {[%clk 0:02:59]} 2. Nc3 {[%clk 0:02:59]}  g6 {[%clk 0:02:59]} 3. Nf3 {[%clk 0:02:59]}  Bg7 {[%clk 0:02:59]} 4. g3 {[%clk 0:03:00]}  O-O {[%clk 0:02:59]} 5. Bg2 {[%clk 0:03:00]}  b6 {[%clk 0:02:59]} 6. Ne5 {[%clk 0:02:58]}  c6 {[%clk 0:02:59]} 7. O-O {[%clk 0:02:58]}  Bb7 {[%clk 0:02:59]} 8. d4 {[%clk 0:02:58]}  d6 {[%clk 0:03:00]} 9. Nd3 {[%clk 0:02:58]}  Nbd7 {[%clk 0:03:00]} 10. b3 {[%clk 0:02:58]}  Qc7 {[%clk 0:03:00]} 11. Bb2 {[%clk 0:02:57]}  a6 {[%clk 0:03:00]} 12. Rc1 {[%clk 0:02:57]}  Rac8 {[%clk 0:02:59]} 13. e4 {[%clk 0:02:53]}  e5 {[%clk 0:02:59]} 14. dxe5 {[%clk 0:02:50]}  dxe5 {[%clk 0:02:57]} 15. Qe2 {[%clk 0:02:49]}  Rfd8 {[%clk 0:02:56]} 16. Rfd1 {[%clk 0:02:49]}  Nf8 {[%clk 0:02:54]} 17. Na4 {[%clk 0:02:43]}  N6d7 {[%clk 0:02:51]} 18. Bh3 {[%clk 0:02:37]}  c5 {[%clk 0:02:30]} 19. Nc3 {[%clk 0:02:29]}  Ne6 {[%clk 0:02:26]} 20. Nd5 {[%clk 0:02:27]}  Bxd5 {[%clk 0:02:23]} 21. cxd5 {[%clk 0:02:11]}  Nd4 {[%clk 0:02:16]} 22. Bxd4 {[%clk 0:02:07]}  exd4 {[%clk 0:02:16]} 23. f4 {[%clk 0:02:02]}  Nf6 {[%clk 0:02:09]} 24. Bxc8 {[%clk 0:01:55]}  Qxc8 {[%clk 0:02:08]} 25. Qf3 {[%clk 0:01:54]}  a5 {[%clk 0:02:03]} 26. a4 {[%clk 0:01:51]}  h5 {[%clk 0:02:01]} 27. Re1 {[%clk 0:01:47]}  Ng4 {[%clk 0:01:57]} 28. e5 {[%clk 0:01:35]}  Qb7 {[%clk 0:01:53]} 29. Qe4 {[%clk 0:01:00]}  Ne3 {[%clk 0:01:45]} 30. e6 {[%clk 0:00:54]}  f5 {[%clk 0:01:36]} 31. e7 {[%clk 0:00:49]}  Re8 {[%clk 0:01:36]} 32. Qe6+ {[%clk 0:00:47]}  Kh7 {[%clk 0:01:35]} 33. Rxe3 {[%clk 0:00:43]}  dxe3 {[%clk 0:01:33]} 34. d6 {[%clk 0:00:42]}  e2 {[%clk 0:01:25]} 35. Ne5 {[%clk 0:00:22]}  Bxe5 {[%clk 0:01:15]} 36. Qxe5 {[%clk 0:00:22]}  Qf3 {[%clk 0:01:05]} 37. d7 {[%clk 0:00:18]}  Qxb3 {[%clk 0:00:43]} 38. dxe8=Q {[%clk 0:00:08]}  Qd1+ {[%clk 0:00:43]} 39. Rxd1 {[%clk 0:00:08]}  exd1=Q+ {[%clk 0:00:43]} 40. Kf2 {[%clk 0:00:09]}  Qd2+ {[%clk 0:00:42]} 41. Qe2 {[%clk 0:00:09]}  Qd4+ {[%clk 0:00:43]} 42. Kg2 {[%clk 0:00:09]}  Qd5+ {[%clk 0:00:42]} 43. Qf3 {[%clk 0:00:09]}  Qd2+ {[%clk 0:00:41]} 44. Kh3 {[%clk 0:00:07]}  h4 {[%clk 0:00:41]} 45. Qf7+ {[%clk 0:00:07]}  Kh6 {[%clk 0:00:41]} 46. Qf8+ {[%clk 0:00:07]} 1-0


[Site "https://www.chess.com"]

[Event "Titled Tuesday Blitz January 17 Early 2023"]
[White "Ginzburg, Yakov"]
[Black "Becerra, Juan David"]
[WhiteFideId "4157176"]
[BlackFideId "4404998"]
[WhiteElo "2405"]
[BlackElo "2382"]
[Result "1/2-1/2"]
[Round "09"]
[TimeControl "180+2"]
[Date "2023.01.17"]
[WhiteClock "0:00:06"]
[BlackClock "0:02:02"]

1. e4 {[%clk 0:01:56]}  d5 {[%clk 0:03:00]} 2. exd5 {[%clk 0:01:53]}  Qxd5 {[%clk 0:02:56]} 3. Nc3 {[%clk 0:01:54]}  Qa5 {[%clk 0:02:55]} 4. d4 {[%clk 0:01:55]}  Nf6 {[%clk 0:02:54]} 5. Bd2 {[%clk 0:01:55]}  c6 {[%clk 0:02:52]} 6. Bc4 {[%clk 0:01:55]}  Bg4 {[%clk 0:02:49]} 7. Nf3 {[%clk 0:01:50]}  Qh5 {[%clk 0:02:47]} 8. Qe2 {[%clk 0:01:31]}  Nbd7 {[%clk 0:02:44]} 9. O-O-O {[%clk 0:01:25]}  O-O-O {[%clk 0:02:44]} 10. Bf4 {[%clk 0:01:16]}  e6 {[%clk 0:02:42]} 11. Kb1 {[%clk 0:00:50]}  Nb6 {[%clk 0:02:41]} 12. Bb3 {[%clk 0:00:46]}  Nbd5 {[%clk 0:02:41]} 13. Nxd5 {[%clk 0:00:42]}  Nxd5 {[%clk 0:02:40]} 14. Bg3 {[%clk 0:00:41]}  Bd6 {[%clk 0:02:35]} 15. Rd3 {[%clk 0:00:33]}  Nf4 {[%clk 0:02:34]} 16. Bxf4 {[%clk 0:00:30]}  Bxf4 {[%clk 0:02:35]} 17. Re1 {[%clk 0:00:30]}  Bxh2 {[%clk 0:02:32]} 18. Qe3 {[%clk 0:00:28]}  Bxf3 {[%clk 0:02:29]} 19. Qxf3 {[%clk 0:00:28]}  Qxf3 {[%clk 0:02:29]} 20. Rxf3 {[%clk 0:00:29]}  Bd6 {[%clk 0:02:30]} 21. Rxf7 {[%clk 0:00:28]}  e5 {[%clk 0:02:25]} 22. dxe5 {[%clk 0:00:27]}  Bxe5 {[%clk 0:02:25]} 23. c3 {[%clk 0:00:24]}  Bf6 {[%clk 0:02:25]} 24. a4 {[%clk 0:00:22]}  Rhf8 {[%clk 0:02:25]} 25. Rxf8 {[%clk 0:00:21]}  Rxf8 {[%clk 0:02:26]} 26. g3 {[%clk 0:00:18]}  Rd8 {[%clk 0:02:26]} 27. Kc2 {[%clk 0:00:17]}  a5 {[%clk 0:02:23]} 28. f4 {[%clk 0:00:17]}  Kc7 {[%clk 0:02:24]} 29. Bc4 {[%clk 0:00:17]}  h5 {[%clk 0:02:24]} 30. Rh1 {[%clk 0:00:16]}  Rh8 {[%clk 0:02:23]} 31. Be2 {[%clk 0:00:13]}  h4 {[%clk 0:02:24]} 32. g4 {[%clk 0:00:14]}  g5 {[%clk 0:02:22]} 33. fxg5 {[%clk 0:00:14]}  Bxg5 {[%clk 0:02:22]} 34. Rh3 {[%clk 0:00:15]}  Bf4 {[%clk 0:02:22]} 35. Rf3 {[%clk 0:00:13]}  Bg3 {[%clk 0:02:22]} 36. Bf1 {[%clk 0:00:13]}  Rh7 {[%clk 0:02:19]} 37. Bh3 {[%clk 0:00:13]}  Re7 {[%clk 0:02:19]} 38. Kd3 {[%clk 0:00:11]}  Rd7+ {[%clk 0:02:19]} 39. Ke2 {[%clk 0:00:10]}  Re7+ {[%clk 0:02:19]} 40. Re3 {[%clk 0:00:11]}  Rg7 {[%clk 0:02:18]} 41. b4 {[%clk 0:00:10]}  Kb6 {[%clk 0:02:15]} 42. Rf3 {[%clk 0:00:08]}  Re7+ {[%clk 0:02:15]} 43. Kd3 {[%clk 0:00:08]}  Re1 {[%clk 0:02:14]} 44. g5 {[%clk 0:00:05]}  Re5 {[%clk 0:02:13]} 45. Rf5 {[%clk 0:00:04]}  axb4 {[%clk 0:02:07]} 46. Rxe5 {[%clk 0:00:02]}  Bxe5 {[%clk 0:02:08]} 47. cxb4 {[%clk 0:00:03]}  Bg7 {[%clk 0:02:03]} 48. Ke4 {[%clk 0:00:03]}  Bf8 {[%clk 0:02:02]} 49. g6 {[%clk 0:00:04]}  c5 {[%clk 0:01:58]} 50. bxc5+ {[%clk 0:00:04]}  Kxc5 {[%clk 0:01:59]} 51. Ke5 {[%clk 0:00:05]}  Kb4 {[%clk 0:01:59]} 52. Kf6 {[%clk 0:00:05]}  Kxa4 {[%clk 0:01:57]} 53. Kf7 {[%clk 0:00:05]}  Bh6 {[%clk 0:01:57]} 54. g7 {[%clk 0:00:04]}  Bxg7 {[%clk 0:01:57]} 55. Kxg7 {[%clk 0:00:05]}  b5 {[%clk 0:01:58]} 56. Kg6 {[%clk 0:00:06]}  b4 {[%clk 0:01:59]} 57. Kh5 {[%clk 0:00:06]}  b3 {[%clk 0:02:00]} 58. Kxh4 {[%clk 0:00:06]}  b2 {[%clk 0:02:01]} 59. Bf5 {[%clk 0:00:06]}  b1=Q {[%clk 0:02:02]} 60. Bxb1 {[%clk 0:00:06]} 1/2-1/2


[Site "https://www.chess.com"]

[Event "Titled Tuesday Blitz January 17 Early 2023"]
[White "Donskov, Anatoly"]
[Black "Sielecki, Christof"]
[WhiteFideId "24143413"]
[BlackFideId "4620437"]
[WhiteElo "2279"]
[BlackElo "2419"]
[Result "1/2-1/2"]
[Round "09"]
[TimeControl "180+2"]
[Date "2023.01.17"]
[WhiteClock "0:00:05"]
[BlackClock "0:00:19"]

1. e4 {[%clk 0:02:57]}  c5 {[%clk 0:02:58]} 2. Nf3 {[%clk 0:02:57]}  a6 {[%clk 0:02:58]} 3. c4 {[%clk 0:02:57]}  Nc6 {[%clk 0:02:58]} 4. d4 {[%clk 0:02:57]}  cxd4 {[%clk 0:02:58]} 5. Nxd4 {[%clk 0:02:58]}  e5 {[%clk 0:02:59]} 6. Nc2 {[%clk 0:02:56]}  Nf6 {[%clk 0:02:59]} 7. Nc3 {[%clk 0:02:56]}  Bc5 {[%clk 0:02:58]} 8. Be2 {[%clk 0:02:55]}  d6 {[%clk 0:02:59]} 9. O-O {[%clk 0:02:55]}  O-O {[%clk 0:02:59]} 10. Be3 {[%clk 0:02:44]}  Be6 {[%clk 0:02:58]} 11. b3 {[%clk 0:02:29]}  Nb4 {[%clk 0:02:53]} 12. Nxb4 {[%clk 0:02:06]}  Bxb4 {[%clk 0:02:54]} 13. Nd5 {[%clk 0:02:03]}  Bxd5 {[%clk 0:02:37]} 14. exd5 {[%clk 0:01:59]}  a5 {[%clk 0:02:27]} 15. a3 {[%clk 0:01:55]}  Bc5 {[%clk 0:02:24]} 16. Bxc5 {[%clk 0:01:55]}  dxc5 {[%clk 0:02:25]} 17. Qc2 {[%clk 0:01:41]}  b6 {[%clk 0:02:06]} 18. Bd3 {[%clk 0:01:36]}  Re8 {[%clk 0:02:03]} 19. Rae1 {[%clk 0:01:35]}  Qd6 {[%clk 0:02:00]} 20. g3 {[%clk 0:01:25]}  Ra7 {[%clk 0:01:58]} 21. Be4 {[%clk 0:01:04]}  Rae7 {[%clk 0:01:51]} 22. Kg2 {[%clk 0:01:03]}  g6 {[%clk 0:01:51]} 23. f3 {[%clk 0:00:58]}  h5 {[%clk 0:01:37]} 24. Rf2 {[%clk 0:00:53]}  Kg7 {[%clk 0:01:36]} 25. Qd2 {[%clk 0:00:49]}  Nh7 {[%clk 0:01:32]} 26. Bc2 {[%clk 0:00:47]}  f5 {[%clk 0:01:17]} 27. Rfe2 {[%clk 0:00:46]}  Nf6 {[%clk 0:01:15]} 28. Qc3 {[%clk 0:00:35]}  Kf7 {[%clk 0:01:14]} 29. Rf1 {[%clk 0:00:23]}  Rh8 {[%clk 0:00:59]} 30. h4 {[%clk 0:00:20]}  Rg8 {[%clk 0:00:55]} 31. Qb2 {[%clk 0:00:18]}  Rge8 {[%clk 0:00:44]} 32. Qc3 {[%clk 0:00:17]}  Nd7 {[%clk 0:00:31]} 33. Qd2 {[%clk 0:00:16]}  Nf6 {[%clk 0:00:30]} 34. Qc3 {[%clk 0:00:16]}  e4 {[%clk 0:00:26]} 35. fxe4 {[%clk 0:00:16]}  Nxe4 {[%clk 0:00:24]} 36. Bxe4 {[%clk 0:00:16]}  Rxe4 {[%clk 0:00:25]} 37. Rxe4 {[%clk 0:00:09]}  Rxe4 {[%clk 0:00:26]} 38. Qh8 {[%clk 0:00:07]}  Rg4 {[%clk 0:00:19]} 39. Qh7+ {[%clk 0:00:05]}  Kf8 {[%clk 0:00:20]} 40. Qh8+ {[%clk 0:00:05]}  Kf7 {[%clk 0:00:20]} 41. Qh7+ {[%clk 0:00:06]}  Kf8 {[%clk 0:00:18]} 42. Rf3 {[%clk 0:00:05]}  f4 {[%clk 0:00:17]} 43. Qh8+ {[%clk 0:00:04]}  Kf7 {[%clk 0:00:17]} 44. Qh7+ {[%clk 0:00:04]}  Kf8 {[%clk 0:00:18]} 45. Qh8+ {[%clk 0:00:05]}  Kf7 {[%clk 0:00:18]} 46. Qh7+ {[%clk 0:00:05]}  Kf8 {[%clk 0:00:19]} 1/2-1/2


[Site "https://www.chess.com"]

[Event "Titled Tuesday Blitz January 17 Early 2023"]
[White "Lacasa Diaz, Jose Antonio"]
[Black "Golubev, Mikhail"]
[WhiteFideId "2203375"]
[BlackFideId "14100983"]
[WhiteElo "2359"]
[BlackElo "2461"]
[Result "1-0"]
[Round "09"]
[TimeControl "180+2"]
[Date "2023.01.17"]
[WhiteClock "0:00:29"]
[BlackClock "0:00:02"]

1. e4 {[%clk 0:03:00]}  c5 {[%clk 0:02:56]} 2. Nf3 {[%clk 0:03:00]}  d6 {[%clk 0:02:56]} 3. d4 {[%clk 0:02:59]}  cxd4 {[%clk 0:02:56]} 4. Nxd4 {[%clk 0:03:00]}  Nf6 {[%clk 0:02:56]} 5. Nc3 {[%clk 0:03:01]}  g6 {[%clk 0:02:55]} 6. Be3 {[%clk 0:03:01]}  Bg7 {[%clk 0:02:55]} 7. f3 {[%clk 0:03:01]}  O-O {[%clk 0:02:55]} 8. Qd2 {[%clk 0:02:59]}  Nc6 {[%clk 0:02:55]} 9. Bc4 {[%clk 0:02:47]}  Nxd4 {[%clk 0:02:52]} 10. Bxd4 {[%clk 0:02:46]}  Be6 {[%clk 0:02:53]} 11. Bb3 {[%clk 0:02:34]}  Qa5 {[%clk 0:02:51]} 12. O-O-O {[%clk 0:02:34]}  b5 {[%clk 0:02:49]} 13. Rhe1 {[%clk 0:02:14]}  Bxb3 {[%clk 0:02:45]} 14. axb3 {[%clk 0:02:12]}  Rfc8 {[%clk 0:02:13]} 15. Kb1 {[%clk 0:02:10]}  Rc6 {[%clk 0:02:06]} 16. Bxf6 {[%clk 0:02:01]}  Ra6 {[%clk 0:01:52]} 17. Na4 {[%clk 0:02:00]}  Qxd2 {[%clk 0:01:32]} 18. Rxd2 {[%clk 0:02:01]}  Bxf6 {[%clk 0:01:32]} 19. Nc3 {[%clk 0:02:01]}  Bxc3 {[%clk 0:01:25]} 20. bxc3 {[%clk 0:02:02]}  Rc6 {[%clk 0:01:21]} 21. Kb2 {[%clk 0:02:02]}  Rac8 {[%clk 0:01:20]} 22. Rd3 {[%clk 0:02:02]}  a5 {[%clk 0:01:13]} 23. Ra1 {[%clk 0:01:58]}  a4 {[%clk 0:01:13]} 24. Re1 {[%clk 0:01:24]}  Kf8 {[%clk 0:00:38]} 25. Ree3 {[%clk 0:01:19]}  axb3 {[%clk 0:00:33]} 26. cxb3 {[%clk 0:01:18]}  Ra8 {[%clk 0:00:31]} 27. Rd2 {[%clk 0:00:35]}  Rca6 {[%clk 0:00:29]} 28. Ree2 {[%clk 0:00:35]}  Ra1 {[%clk 0:00:22]} 29. b4 {[%clk 0:00:35]}  f6 {[%clk 0:00:19]} 30. c4 {[%clk 0:00:31]}  bxc4 {[%clk 0:00:06]} 31. Kc3 {[%clk 0:00:30]}  Rc1+ {[%clk 0:00:05]} 32. Rc2 {[%clk 0:00:30]}  Rxc2+ {[%clk 0:00:03]} 33. Rxc2 {[%clk 0:00:31]}  Ke8 {[%clk 0:00:01]} 34. Rb2 {[%clk 0:00:29]}  Kd7 {[%clk 0:00:02]} 35. Kxc4 {[%clk 0:00:29]}  Rc8+ {[%clk 0:00:02]} 36. Kd4 {[%clk 0:00:29]} 1-0


[Site "https://www.chess.com"]

[Event "Titled Tuesday Blitz January 17 Early 2023"]
[White "Cappai, Davide"]
[Black "Kabilov, Amin"]
[WhiteFideId "813338"]
[BlackFideId "14700859"]
[WhiteElo "2140"]
[BlackElo "2207"]
[Result "0-1"]
[Round "09"]
[TimeControl "180+2"]
[Date "2023.01.17"]
[WhiteClock "0:00:18"]
[BlackClock "0:00:10"]

1. b3 {[%clk 0:02:49]}  Nf6 {[%clk 0:02:56]} 2. Bb2 {[%clk 0:02:50]}  c5 {[%clk 0:02:52]} 3. f4 {[%clk 0:02:50]}  Nc6 {[%clk 0:02:51]} 4. Nf3 {[%clk 0:02:50]}  d6 {[%clk 0:02:49]} 5. g3 {[%clk 0:02:51]}  g6 {[%clk 0:02:47]} 6. Bg2 {[%clk 0:02:51]}  Bg7 {[%clk 0:02:47]} 7. O-O {[%clk 0:02:52]}  O-O {[%clk 0:02:47]} 8. d3 {[%clk 0:02:52]}  e5 {[%clk 0:02:42]} 9. fxe5 {[%clk 0:02:51]}  Ng4 {[%clk 0:02:42]} 10. Qd2 {[%clk 0:02:34]}  Bh6 {[%clk 0:02:39]} 11. Qc3 {[%clk 0:02:33]}  Nd4 {[%clk 0:02:25]} 12. Kh1 {[%clk 0:01:55]}  Nxe2 {[%clk 0:01:19]} 13. Qe1 {[%clk 0:01:54]}  Nd4 {[%clk 0:01:19]} 14. Nxd4 {[%clk 0:01:46]}  cxd4 {[%clk 0:01:19]} 15. Bxd4 {[%clk 0:01:47]}  dxe5 {[%clk 0:01:12]} 16. Bg1 {[%clk 0:01:47]}  Bg7 {[%clk 0:01:00]} 17. Nd2 {[%clk 0:01:41]}  f5 {[%clk 0:00:56]} 18. h3 {[%clk 0:01:37]}  Nf6 {[%clk 0:00:55]} 19. Nc4 {[%clk 0:01:35]}  e4 {[%clk 0:00:55]} 20. Rd1 {[%clk 0:01:30]}  Qc7 {[%clk 0:00:48]} 21. dxe4 {[%clk 0:01:15]}  fxe4 {[%clk 0:00:47]} 22. Bh2 {[%clk 0:01:11]}  b5 {[%clk 0:00:38]} 23. g4 {[%clk 0:01:08]}  Qc5 {[%clk 0:00:33]} 24. Bd6 {[%clk 0:01:02]}  Qc6 {[%clk 0:00:21]} 25. Bxf8 {[%clk 0:01:02]}  Bxf8 {[%clk 0:00:19]} 26. g5 {[%clk 0:00:53]}  Nh5 {[%clk 0:00:15]} 27. Ne5 {[%clk 0:00:31]}  Qc7 {[%clk 0:00:15]} 28. Bxe4 {[%clk 0:00:26]}  Bb7 {[%clk 0:00:16]} 29. Bxb7 {[%clk 0:00:19]}  Qxb7+ {[%clk 0:00:16]} 30. Nf3 {[%clk 0:00:18]}  Qc7 {[%clk 0:00:13]} 31. Qe6+ {[%clk 0:00:18]}  Kh8 {[%clk 0:00:12]} 32. Qe5+ {[%clk 0:00:18]}  Qxe5 {[%clk 0:00:13]} 33. Nxe5 {[%clk 0:00:19]}  Ng3+ {[%clk 0:00:13]} 34. Kg2 {[%clk 0:00:19]}  Nxf1 {[%clk 0:00:13]} 35. Rxf1 {[%clk 0:00:19]}  Rc8 {[%clk 0:00:14]} 36. Nf7+ {[%clk 0:00:19]}  Kg8 {[%clk 0:00:13]} 37. Rf2 {[%clk 0:00:18]}  Bc5 {[%clk 0:00:11]} 38. Rf3 {[%clk 0:00:18]}  Bf8 {[%clk 0:00:10]} 39. Nh6+ {[%clk 0:00:19]}  Bxh6 {[%clk 0:00:10]} 40. gxh6 {[%clk 0:00:19]}  Rxc2+ {[%clk 0:00:10]} 41. Rf2 {[%clk 0:00:20]}  Rxf2+ {[%clk 0:00:10]} 42. Kxf2 {[%clk 0:00:21]}  Kf7 {[%clk 0:00:10]} 43. Ke3 {[%clk 0:00:22]}  g5 {[%clk 0:00:10]} 44. Kd4 {[%clk 0:00:19]}  Kg6 {[%clk 0:00:10]} 45. Kc5 {[%clk 0:00:19]}  Kxh6 {[%clk 0:00:11]} 46. Kxb5 {[%clk 0:00:19]}  Kg6 {[%clk 0:00:11]} 47. Kc4 {[%clk 0:00:20]}  h5 {[%clk 0:00:12]} 48. Kd3 {[%clk 0:00:20]}  Kf5 {[%clk 0:00:12]} 49. Ke3 {[%clk 0:00:20]}  g4 {[%clk 0:00:12]} 50. b4 {[%clk 0:00:20]}  g3 {[%clk 0:00:12]} 51. h4 {[%clk 0:00:20]}  Kg4 {[%clk 0:00:11]} 52. a4 {[%clk 0:00:20]}  Kh3 {[%clk 0:00:11]} 53. b5 {[%clk 0:00:20]}  g2 {[%clk 0:00:11]} 54. Kf2 {[%clk 0:00:20]}  Kh2 {[%clk 0:00:10]} 55. b6 {[%clk 0:00:18]}  g1=Q+ {[%clk 0:00:10]} 0-1


[Site "https://www.chess.com"]

[Event "Titled Tuesday Blitz January 17 Early 2023"]
[White "Skurikhin, Dmitrij"]
[Black "Md, Imran"]
[WhiteFideId "4161297"]
[BlackFideId "25748580"]
[WhiteElo "2297"]
[BlackElo "2284"]
[Result "0-1"]
[Round "09"]
[TimeControl "180+2"]
[Date "2023.01.17"]
[WhiteClock "0:00:07"]
[BlackClock "0:00:19"]

1. d4 {[%clk 0:03:00]}  d5 {[%clk 0:02:57]} 2. Nf3 {[%clk 0:02:59]}  Nf6 {[%clk 0:02:57]} 3. c4 {[%clk 0:02:59]}  dxc4 {[%clk 0:02:42]} 4. e3 {[%clk 0:02:58]}  a6 {[%clk 0:02:37]} 5. a4 {[%clk 0:02:57]}  Bf5 {[%clk 0:02:34]} 6. Nc3 {[%clk 0:02:54]}  e6 {[%clk 0:02:26]} 7. Bxc4 {[%clk 0:02:54]}  Nc6 {[%clk 0:02:25]} 8. O-O {[%clk 0:02:49]}  Bd6 {[%clk 0:02:25]} 9. Qe2 {[%clk 0:02:45]}  Ne4 {[%clk 0:02:23]} 10. Nxe4 {[%clk 0:02:44]}  Bxe4 {[%clk 0:02:20]} 11. Nd2 {[%clk 0:02:41]}  Bg6 {[%clk 0:02:17]} 12. f4 {[%clk 0:02:40]}  O-O {[%clk 0:02:14]} 13. Kh1 {[%clk 0:02:39]}  Kh8 {[%clk 0:02:11]} 14. Ba2 {[%clk 0:02:35]}  Qh4 {[%clk 0:02:00]} 15. Nf3 {[%clk 0:02:31]}  Qh5 {[%clk 0:02:00]} 16. Qf2 {[%clk 0:02:26]}  Rad8 {[%clk 0:01:52]} 17. Bd2 {[%clk 0:02:24]}  Be4 {[%clk 0:01:49]} 18. Ng5 {[%clk 0:02:23]}  Bd3 {[%clk 0:01:46]} 19. Rg1 {[%clk 0:02:19]}  Be7 {[%clk 0:01:42]} 20. Nf3 {[%clk 0:02:06]}  h6 {[%clk 0:01:34]} 21. Rac1 {[%clk 0:02:03]}  g5 {[%clk 0:01:25]} 22. fxg5 {[%clk 0:01:54]}  hxg5 {[%clk 0:01:24]} 23. Bb1 {[%clk 0:01:45]}  Bxb1 {[%clk 0:01:20]} 24. Rxb1 {[%clk 0:01:45]}  g4 {[%clk 0:01:17]} 25. Ne1 {[%clk 0:01:37]}  Bd6 {[%clk 0:01:16]} 26. g3 {[%clk 0:01:33]}  Kg7 {[%clk 0:01:15]} 27. e4 {[%clk 0:01:16]}  Rh8 {[%clk 0:01:08]} 28. Bc3 {[%clk 0:01:14]}  e5 {[%clk 0:01:06]} 29. Nc2 {[%clk 0:01:02]}  f6 {[%clk 0:01:02]} 30. Rbf1 {[%clk 0:01:01]}  Rdf8 {[%clk 0:00:59]} 31. Rg2 {[%clk 0:00:52]}  Qg5 {[%clk 0:00:55]} 32. Ne3 {[%clk 0:00:51]}  exd4 {[%clk 0:00:54]} 33. Nf5+ {[%clk 0:00:51]}  Kg6 {[%clk 0:00:51]} 34. Bxd4 {[%clk 0:00:47]}  Be5 {[%clk 0:00:49]} 35. Bc3 {[%clk 0:00:39]}  Rh3 {[%clk 0:00:47]} 36. Nh4+ {[%clk 0:00:29]}  Kh7 {[%clk 0:00:44]} 37. Bxe5 {[%clk 0:00:27]}  Qxe5 {[%clk 0:00:42]} 38. Qf5+ {[%clk 0:00:19]}  Qxf5 {[%clk 0:00:39]} 39. exf5 {[%clk 0:00:19]}  Re8 {[%clk 0:00:38]} 40. Rd2 {[%clk 0:00:19]}  Re7 {[%clk 0:00:36]} 41. Rf4 {[%clk 0:00:18]}  Ne5 {[%clk 0:00:35]} 42. Kg2 {[%clk 0:00:18]}  Kh6 {[%clk 0:00:19]} 43. Re2 {[%clk 0:00:17]}  Kg5 {[%clk 0:00:19]} 44. Ng6 {[%clk 0:00:16]}  Nxg6 {[%clk 0:00:18]} 45. Rd2 {[%clk 0:00:08]}  Nxf4+ {[%clk 0:00:17]} 46. gxf4+ {[%clk 0:00:07]}  Kxf4 {[%clk 0:00:18]} 47. Rd3 {[%clk 0:00:08]}  Kxf5 {[%clk 0:00:19]} 48. Re3 {[%clk 0:00:07]}  Rexe3 {[%clk 0:00:19]} 0-1


[Site "https://www.chess.com"]

[Event "Titled Tuesday Blitz January 17 Early 2023"]
[White "Vivas Zamora, Fabian Ernesto"]
[Black "Alfaro, William"]
[WhiteFideId "3902480"]
[BlackFideId "6100457"]
[WhiteElo "2346"]
[BlackElo "2134"]
[Result "1-0"]
[Round "09"]
[TimeControl "180+2"]
[Date "2023.01.17"]
[WhiteClock "0:00:04"]
[BlackClock "0:00:13"]

1. e4 {[%clk 0:03:00]}  c5 {[%clk 0:02:59]} 2. Nc3 {[%clk 0:02:59]}  a6 {[%clk 0:02:58]} 3. g3 {[%clk 0:02:58]}  b5 {[%clk 0:02:58]} 4. Bg2 {[%clk 0:02:58]}  Bb7 {[%clk 0:02:58]} 5. Nh3 {[%clk 0:02:56]}  e6 {[%clk 0:02:58]} 6. d3 {[%clk 0:02:48]}  Nf6 {[%clk 0:02:56]} 7. O-O {[%clk 0:02:37]}  Be7 {[%clk 0:02:54]} 8. e5 {[%clk 0:02:27]}  Bxg2 {[%clk 0:02:52]} 9. Kxg2 {[%clk 0:02:27]}  Nd5 {[%clk 0:02:51]} 10. Nxd5 {[%clk 0:02:26]}  exd5 {[%clk 0:02:50]} 11. Qg4 {[%clk 0:02:15]}  O-O {[%clk 0:02:34]} 12. Bh6 {[%clk 0:02:14]}  g6 {[%clk 0:02:34]} 13. Bxf8 {[%clk 0:02:12]}  Bxf8 {[%clk 0:02:35]} 14. Qf3 {[%clk 0:01:58]}  Nc6 {[%clk 0:02:32]} 15. Qxd5 {[%clk 0:01:56]}  Nb4 {[%clk 0:02:29]} 16. Qb3 {[%clk 0:01:50]}  Qc7 {[%clk 0:02:27]} 17. a3 {[%clk 0:01:35]}  c4 {[%clk 0:02:24]} 18. dxc4 {[%clk 0:01:32]}  bxc4 {[%clk 0:02:24]} 19. Qc3 {[%clk 0:01:31]}  Nd5 {[%clk 0:02:24]} 20. Qd4 {[%clk 0:01:27]}  Ne7 {[%clk 0:02:24]} 21. Rad1 {[%clk 0:01:17]}  Rd8 {[%clk 0:02:12]} 22. Rfe1 {[%clk 0:01:09]}  Qc6+ {[%clk 0:02:09]} 23. Kg1 {[%clk 0:01:03]}  Nf5 {[%clk 0:02:05]} 24. Qd5 {[%clk 0:01:01]}  Qb6 {[%clk 0:01:55]} 25. Ng5 {[%clk 0:01:01]}  Kg7 {[%clk 0:01:49]} 26. Qxf7+ {[%clk 0:00:59]}  Kh6 {[%clk 0:01:49]} 27. Qxh7+ {[%clk 0:00:39]}  Kxg5 {[%clk 0:01:48]} 28. h4+ {[%clk 0:00:37]}  Kg4 {[%clk 0:01:42]} 29. Rd6 {[%clk 0:00:04]}  Nxd6 {[%clk 0:00:13]} 30. Qxg6+ {[%clk 0:00:03]}  Kf3 {[%clk 0:00:13]} 31. Qh5# {[%clk 0:00:04]} 1-0


[Site "https://www.chess.com"]

[Event "Titled Tuesday Blitz January 17 Early 2023"]
[White "Berezin, Viktor"]
[Black "parintele_chess"]
[WhiteFideId "14107872"]
[WhiteElo "2307"]
[BlackElo "2259"]
[Result "1-0"]
[Round "09"]
[TimeControl "180+2"]
[Date "2023.01.17"]
[WhiteClock "0:02:06"]
[BlackClock "0:01:29"]

1. d4 {[%clk 0:02:59]}  d5 {[%clk 0:02:58]} 2. c4 {[%clk 0:02:57]}  e6 {[%clk 0:02:58]} 3. Nf3 {[%clk 0:02:56]}  a6 {[%clk 0:02:58]} 4. g3 {[%clk 0:02:56]}  dxc4 {[%clk 0:02:58]} 5. Bg2 {[%clk 0:02:56]}  b5 {[%clk 0:02:57]} 6. O-O {[%clk 0:02:57]}  Bb7 {[%clk 0:02:57]} 7. a4 {[%clk 0:02:57]}  Nf6 {[%clk 0:02:52]} 8. b3 {[%clk 0:02:56]}  cxb3 {[%clk 0:02:50]} 9. Qxb3 {[%clk 0:02:57]}  Bd5 {[%clk 0:02:49]} 10. Qb2 {[%clk 0:02:56]}  c6 {[%clk 0:02:41]} 11. Rd1 {[%clk 0:02:49]}  Nbd7 {[%clk 0:02:31]} 12. Nc3 {[%clk 0:02:40]}  Nb6 {[%clk 0:02:05]} 13. Bg5 {[%clk 0:02:31]}  Be7 {[%clk 0:01:55]} 14. Bxf6 {[%clk 0:02:24]}  Bxf6 {[%clk 0:01:45]} 15. e4 {[%clk 0:02:23]}  Bc4 {[%clk 0:01:45]} 16. a5 {[%clk 0:02:14]}  Nd7 {[%clk 0:01:40]} 17. Nd2 {[%clk 0:02:11]}  Bxd4 {[%clk 0:01:29]} 18. Nxc4 {[%clk 0:02:09]}  Bxc3 {[%clk 0:01:30]} 19. Nd6+ {[%clk 0:02:06]}  Ke7 {[%clk 0:01:29]} 20. Qxc3 {[%clk 0:02:06]} 1-0


[Site "https://www.chess.com"]